fUSD/lending_fUSD_20251028
["ID","MTS","AMOUNT","RATE_DAILY","PERIOD"]
[392544750,1761637843131,-500.0,0.00031589,2]
[392544751,1761637843140,-500.0,0.00031589,2]
[392544752,1761637843150,-500.0,0.00031589,2]
[392544753,1761637843159,-500.0,0.00031589,2]
[392544754,1761637843168,-1180.53813005,0.0003159,3]
[392544755,1761637843179,-1115.94389236,0.0003159,3]
[392544756,1761637843191,-1085.5332,0.0003159,3]
[392544757,1761637843205,-1013.15,0.0003159,3]
[392544758,1761637843216,-1060.561697,0.0003159,3]
[392544759,1761637845602,-1163.87980638,0.00031322,2]
[392544760,1761637845616,-22.12019362,0.00031322,2]
[392544761,1761637845625,-500.0,0.00031589,2]
[392544762,1761637845636,-500.0,0.00031589,2]
[392544763,1761637845645,-500.0,0.00031589,2]
[392544764,1761637845656,-500.0,0.00031589,2]
[392544765,1761637845665,-500.0,0.00031589,2]
[392544766,1761637845674,-500.0,0.00031589,2]
[392544767,1761637845683,-500.0,0.00031589,2]
[392544768,1761637845693,-237.68257356,0.00031589,2]
[392544769,1761637845702,-462.70739025,0.0003159,3]
[392544770,1761637845813,-714.14700968,0.0003159,3]
[392544771,1761637845823,-483.95500019,0.0003159,3]
[392544772,1761637845984,-1030.59999954,0.0003159,3]
[392544800,1761638190519,9608.7426086,0.00031506,120]
[392544802,1761638535420,259.66,0.00013699,2]
[392544804,1761638798953,50000.0,0.0003738,50]
[392544810,1761639031847,-259.66,0.00020187,2]
[392544811,1761639031857,-151.0,0.00024948,2]
[392544812,1761639031866,-151.0,0.00024968,2]
[392544813,1761639031876,-259.66,0.00026676,2]
[392544814,1761639031886,-374.66280455,0.00028288,2]
[392544815,1761639031897,-135.85639445,0.00028288,2]
[392544816,1761639031906,-159.47867009,0.0002833,2]
[392544817,1761639031916,-436.0,0.00028429,2]
[392544818,1761639031924,-132.74943,0.00028429,2]
[392544819,1761639032262,-167.25057,0.00028429,2]
[392544820,1761639032272,-199.36,0.0002843,14]
[392544821,1761639032282,-150.0,0.0002843,4]
[392544822,1761639032290,-150.0,0.0002843,4]
[392544823,1761639032300,-179.01924798,0.0002843,4]
[392544824,1761639032310,-201.13248239,0.0002843,4]
[392544825,1761639032320,-150.0,0.0002843,4]
[392544826,1761639032329,-150.00000001,0.0002843,4]
[392544827,1761639032338,-150.0,0.0002843,4]
[392544828,1761639032347,-115.86557999,0.0002843,4]
[392544829,1761639032358,-34.13442001,0.0002843,4]
[392544830,1761639032368,-150.80790802,0.0002843,4]
[392544831,1761639032377,-150.00000001,0.0002843,4]
[392544832,1761639032387,-150.00000001,0.0002843,4]
[392544833,1761639032396,-150.80375749,0.0002843,4]
[392544834,1761639032406,-150.0,0.0002843,4]
[392544835,1761639032418,-150.0,0.0002843,4]
[392544836,1761639032437,-150.0,0.0002843,4]
[392544837,1761639032448,-150.0,0.0002843,4]
[392544838,1761639032457,-163.23214495,0.0002843,4]
[392544839,1761639032466,-199.36,0.00028704,14]
[392544840,1761639032476,-2567.952,0.0002955,2]
[392544841,1761639032486,-1437.354,0.0002955,2]
[392544842,1761639032495,-3074.031,0.0002955,2]
[392544843,1761639032504,-900.0,0.00029946,7]
[392544844,1761639032514,-500.0,0.00029946,7]
[392544845,1761639032523,-500.0,0.00029946,7]
[392544862,1761639032770,-7050.45992291,0.0003,2]
[392544864,1761639032783,-2806.54007709,0.0003,2]
[392544866,1761639032793,-162.57,0.00030051,2]
[392544869,1761639032804,-246.17,0.0003014,2]
[392544871,1761639032815,-666.0,0.00030159,3]
[392544873,1761639032825,-150.0,0.00030299,2]
[392544875,1761639032834,-250.0,0.00030328,2]
[392544877,1761639032844,-178.33,0.00030424,2]
[392544879,1761639032853,-200.0,0.0003043,2]
[392544881,1761639032863,-294.33220386,0.00030589,2]
[392544882,1761639032872,-178.33,0.00030637,2]
[392544884,1761639032882,-420.0,0.0003069,2]
[392544886,1761639032891,-388.43486083,0.00030768,7]
[392544888,1761639037821,-896.7876723,0.0002955,2]
[392544890,1761639038010,-7.2123277,0.0002955,2]
[392544892,1761639038020,-511.56513917,0.00030768,7]
[392544894,1761639038029,-178.33,0.0003085,2]
[392544895,1761639038039,-168.0,0.00030875,2]
[392544896,1761639038048,-168.0,0.00030949,2]
[392544897,1761639038058,-97.24247313,0.00031,6]
[392544899,1761639040205,-13196.95378984,0.00031,6]
[392544900,1761639040217,-178.33,0.00031063,2]
[392544901,1761639040227,-200.0,0.00031155,2]
[392544902,1761639040236,-151.0,0.00031231,2]
[392544903,1761639040246,-168.0,0.00031252,7]
[392544904,1761639040256,-195.56317,0.0003127,2]
[392544905,1761639040268,-178.33,0.00031276,2]
[392544906,1761639040279,-168.0,0.00031279,7]
[392544908,1761639040291,-207.854,0.00031279,28]
[392544910,1761639040303,-3384.0,0.00031311,2]
[392544912,1761639040313,-166.68,0.00031326,2]
[392544914,1761639040322,-1425.0,0.00031349,2]
[392544916,1761639040332,-2480.564,0.00031358,2]
[392544918,1761639040341,-250.72123905,0.00031358,2]
[392544923,1761639042983,-1187.03276095,0.00031358,2]
[392544924,1761639042994,-436.082,0.00031358,2]
[392544925,1761639043007,-484.249,0.00031358,2]
[392544926,1761639043016,-1271.0,0.00031358,2]
[392544927,1761639043026,-818.0,0.00031358,2]
[392544928,1761639043038,-392.52306472,0.0003139,2]
[392544929,1761639043047,-1000.0,0.00031393,2]
[392544930,1761639043057,-1425.0,0.00031397,2]
[392544931,1761639043067,-1425.0,0.00031399,2]
[392544932,1761639043079,-392.52306464,0.00031402,2]
[392544933,1761639043089,-150.37,0.00031406,2]
[392544934,1761639043098,-1425.0,0.00031414,2]
[392544935,1761639043108,-392.52306464,0.00031414,2]
[392544936,1761639043118,-1425.0,0.00031424,2]
[392544937,1761639043128,-392.52306464,0.00031427,2]
[392544938,1761639043138,-1425.0,0.00031427,2]
[392544939,1761639043148,-392.52306464,0.00031439,2]
[392544940,1761639043157,-392.52306464,0.00031451,2]
[392544941,1761639043166,-840.0,0.00031453,2]
[392544943,1761639043176,-1425.0,0.00031457,2]
[392544945,1761639043185,-150.0,0.00031461,2]
[392544947,1761639043195,-150.0,0.00031461,2]
[392544949,1761639043203,-150.0,0.00031461,2]
[392544951,1761639043212,-150.0,0.00031461,2]
[392544953,1761639043221,-150.0,0.00031461,2]
[392544955,1761639043231,-500.0,0.00031461,2]
[392544956,1761639043240,-150.0,0.00031461,2]
[392544957,1761639043249,-250.0,0.00031461,2]
[392544958,1761639043258,-150.0,0.00031461,2]
[392544959,1761639043268,-150.0,0.00031461,2]
[392544960,1761639043279,-392.52306464,0.00031463,2]
[392544961,1761639043288,-1425.0,0.00031467,2]
[392544962,1761639043298,-392.52306464,0.00031476,2]
[392544963,1761639043307,-392.52306464,0.00031488,2]
[392544964,1761639043316,-178.33,0.00031489,2]
[392544965,1761639043326,-2006.5944415,0.0003149,2]
[392544966,1761639043335,-86316.3474,0.0003149,2]
[392544967,1761639043344,-476.03685503,0.0003149,2]
[392544968,1761639043353,-25818.22369267,0.0003149,2]
[392544969,1761639043362,-5000.0,0.0003149,2]
[392544970,1761639043371,-1000.0,0.00031491,2]
[392544971,1761639043380,-2006.59444145,0.00031491,2]
[392544972,1761639043390,-2006.59444145,0.00031492,2]
[392544973,1761639043399,-1425.0,0.00031499,2]
[392544974,1761639043410,-1138.96664184,0.000315,2]
[392544975,1761639043419,-643.1235321,0.000315,2]
[392544976,1761639043428,-8793.06792762,0.000315,2]
[392544977,1761639043437,-740.18831234,0.000315,2]
[392544978,1761639043446,-262.2125595,0.000315,2]
[392544979,1761639043457,-151.0,0.00031507,2]
[392544980,1761639043466,-1425.0,0.00031517,2]
[392544981,1761639043476,-168.0,0.00031518,2]
[392544982,1761639043486,-2602.20502244,0.00031519,2]
[392544983,1761639043496,-151.0,0.00031519,10]
[392544984,1761639043505,-1425.0,0.00031535,2]
[392544985,1761639043514,-1425.0,0.00031563,2]
[392544986,1761639043523,-292.16579687,0.00031569,2]
[392544987,1761639043533,-164.0,0.0003157,120]
[392544988,1761639043542,-1178.8839618,0.00031578,2]
[392544989,1761639043551,-166.0171937,0.00031578,2]
[392544990,1761639043560,-1478.269554,0.00031578,2]
[392544991,1761639043569,-604.5,0.00031579,7]
[392544992,1761639043579,-500.0,0.00031579,2]
[392544993,1761639043588,-164.0,0.0003158,120]
[392544994,1761639043597,-152.208978,0.0003158,10]
[392544995,1761639043607,-500.0,0.0003158,2]
[392544996,1761639043616,-516.01717602,0.0003158,3]
[392544997,1761639043625,-151.0,0.00031589,2]
[392544998,1761639043636,-291.61135308,0.00031589,2]
[392544999,1761639043645,-604.5,0.00031589,7]
[392545000,1761639043655,-604.5,0.00031589,7]
[392545001,1761639043664,-500.0,0.00031589,2]
[392545002,1761639043673,-500.0,0.00031589,2]
[392545003,1761639043682,-900.0,0.0003159,7]
[392545004,1761639043691,-164.0,0.0003159,120]
[392545005,1761639043700,-500.0,0.0003159,7]
[392545006,1761639043710,-500.0,0.0003159,7]
[392545007,1761639043719,-200.0,0.0003159,2]
[392545008,1761639043729,-200.0,0.0003159,2]
[392545009,1761639043739,-500.0,0.0003159,15]
[392545010,1761639043748,-200.0,0.0003159,2]
[392545011,1761639043757,-287583.235019,0.0003159,3]
[392545012,1761639043767,-395791.466911,0.0003159,3]
[392545013,1761639043776,-615.03725444,0.0003159,2]
[392545014,1761639043787,-615.03725444,0.0003159,2]
[392545015,1761639043797,-615.03725444,0.0003159,2]
[392545016,1761639043807,-172.08,0.0003159,2]
[392545017,1761639043818,-172.08,0.0003159,2]
[392545018,1761639043831,-172.08,0.0003159,2]
[392545019,1761639043842,-172.08,0.0003159,2]
[392545020,1761639043852,-172.08,0.0003159,2]
[392545021,1761639043862,-172.08,0.0003159,2]
[392545022,1761639043872,-172.08,0.0003159,2]
[392545023,1761639043882,-172.08,0.0003159,2]
[392545024,1761639043897,-172.08,0.0003159,2]
[392545025,1761639043909,-172.08,0.0003159,2]
[392545026,1761639043919,-172.08,0.0003159,2]
[392545027,1761639043929,-172.08,0.0003159,2]
[392545028,1761639043938,-172.08,0.0003159,2]
[392545029,1761639043948,-172.08,0.0003159,2]
[392545030,1761639043957,-172.08,0.0003159,2]
[392545031,1761639043966,-172.08,0.0003159,2]
[392545032,1761639043975,-172.08,0.0003159,2]
[392545033,1761639043984,-172.08,0.0003159,2]
[392545034,1761639043994,-172.08,0.0003159,2]
[392545035,1761639044002,-172.08,0.0003159,2]
[392545036,1761639044011,-172.08,0.0003159,2]
[392545037,1761639044020,-172.08,0.0003159,2]
[392545038,1761639044030,-172.08,0.0003159,2]
[392545039,1761639044039,-172.08,0.0003159,2]
[392545040,1761639044048,-172.08,0.0003159,2]
[392545041,1761639044059,-172.08,0.0003159,2]
[392545042,1761639044068,-172.08,0.0003159,2]
[392545043,1761639044081,-172.08,0.0003159,2]
[392545044,1761639044090,-172.08,0.0003159,2]
[392545045,1761639044099,-172.08,0.0003159,2]
[392545046,1761639044108,-172.08,0.0003159,2]
[392545047,1761639044117,-172.08,0.0003159,2]
[392545048,1761639044127,-172.08,0.0003159,2]
[392545049,1761639044136,-172.08,0.0003159,2]
[392545050,1761639044145,-172.08,0.0003159,2]
[392545051,1761639044154,-172.08,0.0003159,2]
[392545052,1761639044163,-172.08,0.0003159,2]
[392545053,1761639044172,-172.08,0.0003159,2]
[392545054,1761639044182,-172.08,0.0003159,2]
[392545055,1761639044191,-172.08,0.0003159,2]
[392545056,1761639044200,-172.08,0.0003159,2]
[392545057,1761639044209,-172.08,0.0003159,2]
[392545058,1761639044218,-172.08,0.0003159,2]
[392545059,1761639044227,-172.08,0.0003159,2]
[392545060,1761639044236,-172.08,0.0003159,2]
[392545061,1761639044245,-172.08,0.0003159,2]
[392545062,1761639044254,-172.08,0.0003159,2]
[392545063,1761639044263,-172.08,0.0003159,2]
[392545064,1761639044272,-172.08,0.0003159,2]
[392545065,1761639044282,-172.08,0.0003159,2]
[392545066,1761639044291,-172.08,0.0003159,2]
[392545067,1761639044301,-172.08,0.0003159,2]
[392545068,1761639044311,-172.08,0.0003159,2]
[392545069,1761639044322,-172.08,0.0003159,2]
[392545070,1761639044332,-172.08,0.0003159,2]
[392545071,1761639044341,-172.08,0.0003159,2]
[392545072,1761639044350,-172.08,0.0003159,2]
[392545073,1761639044360,-172.08,0.0003159,2]
[392545074,1761639044370,-172.08,0.0003159,2]
[392545075,1761639044379,-172.08,0.0003159,2]
[392545076,1761639044389,-172.08,0.0003159,2]
[392545077,1761639044398,-172.08,0.0003159,2]
[392545078,1761639044408,-172.08,0.0003159,2]
[392545079,1761639044421,-172.08,0.0003159,2]
[392545080,1761639044431,-172.08,0.0003159,2]
[392545081,1761639044441,-172.08,0.0003159,2]
[392545082,1761639044450,-172.08,0.0003159,2]
[392545083,1761639044460,-172.08,0.0003159,2]
[392545084,1761639044470,-172.08,0.0003159,2]
[392545085,1761639044479,-172.08,0.0003159,2]
[392545086,1761639044488,-172.08,0.0003159,2]
[392545087,1761639044497,-172.08,0.0003159,2]
[392545088,1761639044506,-172.08,0.0003159,2]
[392545089,1761639044516,-172.08,0.0003159,2]
[392545090,1761639044524,-172.08,0.0003159,2]
[392545091,1761639044534,-172.08,0.0003159,2]
[392545092,1761639044545,-172.08,0.0003159,2]
[392545093,1761639044734,-172.08,0.0003159,2]
[392545094,1761639044745,-172.08,0.0003159,2]
[392545095,1761639044756,-172.08,0.0003159,2]
[392545096,1761639044765,-172.08,0.0003159,2]
[392545097,1761639044775,-172.08,0.0003159,2]
[392545098,1761639044785,-172.08,0.0003159,2]
[392545099,1761639044796,-172.08,0.0003159,2]
[392545100,1761639044805,-172.08,0.0003159,2]
[392545101,1761639044814,-172.08,0.0003159,2]
[392545102,1761639044825,-172.08,0.0003159,2]
[392545103,1761639044834,-172.08,0.0003159,2]
[392545104,1761639044843,-172.08,0.0003159,2]
[392545105,1761639044852,-172.08,0.0003159,2]
[392545106,1761639044862,-172.08,0.0003159,2]
[392545107,1761639044871,-172.08,0.0003159,2]
[392545108,1761639044880,-172.08,0.0003159,2]
[392545109,1761639044889,-172.08,0.0003159,2]
[392545110,1761639044899,-172.08,0.0003159,2]
[392545111,1761639044909,-172.08,0.0003159,2]
[392545112,1761639044918,-172.08,0.0003159,2]
[392545113,1761639044928,-172.08,0.0003159,2]
[392545114,1761639044937,-172.08,0.0003159,2]
[392545115,1761639044947,-272.30398847,0.00031598,2]
[392545116,1761639044958,-252.79023977,0.00031598,2]
[392545117,1761639044967,-252.93774087,0.00031598,2]
[392545118,1761639044978,-251.20250544,0.00031598,2]
[392545119,1761639044988,-500.0,0.00031598,2]
[392545120,1761639044998,-150.0,0.00031598,2]
[392545121,1761639045007,-200.0,0.00031598,2]
[392545122,1761639045018,-150.0,0.00031598,2]
[392545123,1761639045027,-1000.0,0.00031599,3]
[392545124,1761639045038,-604.5,0.00031599,7]
[392545125,1761639045047,-604.5,0.00031599,7]
[392545126,1761639045056,-604.5,0.00031599,7]
[392545127,1761639045067,-604.5,0.00031599,7]
[392545128,1761639045077,-604.5,0.00031599,7]
[392545129,1761639045087,-604.5,0.00031599,7]
[392545130,1761639045097,-604.5,0.00031599,7]
[392545131,1761639045106,-604.5,0.00031599,7]
[392545132,1761639045115,-604.5,0.00031599,7]
[392545133,1761639045126,-604.5,0.00031599,7]
[392545134,1761639045135,-604.5,0.00031599,7]
[392545135,1761639045145,-604.5,0.00031599,7]
[392545136,1761639045155,-604.5,0.00031599,7]
[392545137,1761639045164,-604.5,0.00031599,7]
[392545138,1761639045173,-604.5,0.00031599,7]
[392545139,1761639045183,-604.5,0.00031599,7]
[392545140,1761639045191,-604.5,0.00031599,7]
[392545141,1761639045201,-604.5,0.00031599,7]
[392545142,1761639045212,-604.5,0.00031599,7]
[392545143,1761639045221,-604.5,0.00031599,7]
[392545144,1761639045230,-604.55452288,0.00031599,7]
[392545145,1761639045239,-1000.0,0.00031599,2]
[392545146,1761639045248,-500.0,0.00031599,2]
[392545147,1761639045257,-500.0,0.00031599,2]
[392545148,1761639045267,-500.0,0.00031599,2]
[392545149,1761639045276,-500.0,0.00031599,2]
[392545150,1761639045285,-500.0,0.00031599,2]
[392545151,1761639045294,-500.0,0.00031599,2]
[392545152,1761639045303,-500.0,0.00031599,2]
[392545153,1761639045313,-500.0,0.00031599,2]
[392545154,1761639045323,-500.0,0.00031599,2]
[392545155,1761639045332,-500.0,0.00031599,2]
[392545156,1761639045341,-500.0,0.00031599,2]
[392545157,1761639045352,-500.0,0.00031599,2]
[392545158,1761639045361,-500.0,0.00031599,2]
[392545159,1761639045370,-251.53265965,0.00031599,2]
[392545160,1761639045380,-231.0,0.000316,5]
[392545161,1761639045389,-158919.65442576,0.000316,2]
[392545162,1761639046144,-548.37794436,0.00031493,2]
[392545164,1761639396235,500.0,0.0003738,50]
[392545165,1761639396494,500.0,0.0003738,50]
[392545166,1761639396739,500.0,0.0003738,50]
[392545167,1761639396953,156.51261306,0.0003738,50]
[392545168,1761639397021,500.0,0.0003738,50]
[392545169,1761639397194,500.0,0.0003738,50]
[392545170,1761639397436,500.0,0.0003738,50]
[392545171,1761639397670,500.0,0.0003738,50]
[392545172,1761639397903,500.0,0.0003738,50]
[392545173,1761639398138,500.0,0.0003738,50]
[392545174,1761639398399,422.35761979,0.0003738,50]
[392545175,1761639401158,373.37692331,0.0003738,50]
[392545176,1761639402279,500.0,0.0003738,50]
[392545177,1761639402899,500.0,0.0003738,50]
[392545178,1761639403021,500.0,0.0003738,50]
[392545179,1761639403130,500.0,0.0003738,50]
[392545180,1761639403278,500.0,0.0003738,50]
[392545181,1761639403557,500.0,0.0003738,50]
[392545182,1761639403786,500.0,0.0003738,50]
[392545183,1761639404026,500.0,0.0003738,50]
[392545184,1761639404295,500.0,0.0003738,50]
[392545185,1761639404535,500.0,0.0003738,50]
[392545186,1761639404783,500.0,0.0003738,50]
[392545187,1761639405030,500.0,0.0003738,50]
[392545188,1761639405261,500.0,0.0003738,50]
[392545189,1761639405517,500.0,0.0003738,50]
[392545190,1761639405763,500.0,0.0003738,50]
[392545191,1761639406003,170.49392181,0.0003738,50]
[392545192,1761639407790,501.2524629,0.0003738,50]
[392545193,1761639408230,1000.0,0.0003738,50]
[392545194,1761639408463,1000.0,0.0003738,50]
[392545195,1761639408710,182.45601267,0.0003738,50]
[392545196,1761639410177,500.0,0.0003738,50]
[392545197,1761639410370,500.0,0.0003738,50]
[392545198,1761639410607,500.0,0.0003738,50]
[392545199,1761639410852,500.0,0.0003738,50]
[392545200,1761639410930,2105.68,0.0003738,50]
[392545201,1761639411030,755.67,0.0003738,50]
[392545202,1761639411110,500.0,0.0003738,50]
[392545203,1761639411189,2105.68,0.0003738,50]
[392545204,1761639411313,755.67,0.0003738,50]
[392545205,1761639411394,500.0,0.0003738,50]
[392545206,1761639411532,2105.68,0.0003738,50]
[392545207,1761639411640,500.0,0.0003738,50]
[392545208,1761639411712,755.67,0.0003738,50]
[392545209,1761639411820,2105.68,0.0003738,50]
[392545210,1761639411896,500.0,0.0003738,50]
[392545211,1761639411974,755.67,0.0003738,50]
[392545212,1761639412059,500.0,0.0003738,50]
[392545213,1761639412167,2105.68,0.0003738,50]
[392545214,1761639412243,500.0,0.0003738,50]
[392545215,1761639412326,755.67,0.0003738,50]
[392545216,1761639412411,500.0,0.0003738,50]
[392545217,1761639412485,2105.68,0.0003738,50]
[392545218,1761639412595,500.0,0.0003738,50]
[392545219,1761639412675,500.0,0.0003738,50]
[392545220,1761639412755,755.67,0.0003738,50]
[392545221,1761639412839,2105.68,0.0003738,50]
[392545222,1761639413369,500.0,0.0003738,50]
[392545223,1761639413450,500.0,0.0003738,50]
[392545224,1761639413529,252.21953175,0.0003738,50]
[392545225,1761639413633,500.0,0.0003738,50]
[392545226,1761639413711,500.0,0.0003738,50]
[392545227,1761639413822,500.0,0.0003738,50]
[392545228,1761639413898,2105.68,0.0003738,50]
[392545229,1761639414005,500.0,0.0003738,50]
[392545230,1761639414080,2105.68,0.0003738,50]
[392545231,1761639414185,500.0,0.0003738,50]
[392545232,1761639414261,2105.68,0.0003738,50]
[392545233,1761639414403,500.0,0.0003738,50]
[392545234,1761639414476,2105.68,0.0003738,50]
[392545235,1761639414585,500.0,0.0003738,50]
[392545236,1761639414662,2105.68,0.0003738,50]
[392545237,1761639414773,500.0,0.0003738,50]
[392545238,1761639414887,2105.68,0.0003738,50]
[392545239,1761639415009,500.0,0.0003738,50]
[392545240,1761639415111,2105.68,0.0003738,50]
[392545241,1761639415226,500.0,0.0003738,50]
[392545242,1761639415344,2105.68,0.0003738,50]
[392545243,1761639415438,500.0,0.0003738,50]
[392545244,1761639415820,2105.68,0.0003738,50]
[392545245,1761639415971,578.6970522,0.0003738,50]
[392545246,1761639416089,2105.68,0.0003738,50]
[392545247,1761639416182,1970.74,0.0003738,50]
[392545248,1761639416314,2105.68,0.0003738,50]
[392545249,1761639416392,1970.74,0.0003738,50]
[392545250,1761639416551,2105.68,0.0003738,50]
[392545251,1761639416670,500.0,0.0003738,50]
[392545252,1761639416790,2105.68,0.0003738,50]
[392545253,1761639416874,1970.74,0.0003738,50]
[392545254,1761639416954,509.20266728,0.0003738,50]
[392545255,1761639417039,2105.68,0.0003738,50]
[392545256,1761639417179,1970.74,0.0003738,50]
[392545257,1761639417270,755.67,0.0003738,50]
[392545258,1761639417352,2105.68,0.0003738,50]
[392545259,1761639417436,1970.74,0.0003738,50]
[392545260,1761639417569,755.67,0.0003738,50]
[392545261,1761639417648,2105.68,0.0003738,50]
[392545262,1761639417822,755.67,0.0003738,50]
[392545263,1761639417903,2105.87259362,0.0003738,50]
[392545264,1761639417987,1970.74,0.0003738,50]
[392545265,1761639418109,755.67,0.0003738,50]
[392545266,1761639418191,1970.74,0.0003738,50]
[392545267,1761639418269,500.0,0.0003738,50]
[392545268,1761639418348,163.04943756,0.0003738,50]
[392545269,1761639418426,755.67,0.0003738,50]
[392545270,1761639418500,1970.74,0.0003738,50]
[392545271,1761639418578,174.05007779,0.0003738,50]
[392545272,1761639418654,1970.74,0.0003738,50]
[392545273,1761639418730,755.67,0.0003738,50]
[392545274,1761639418819,1970.74,0.0003738,50]
[392545275,1761639418894,755.67,0.0003738,50]
[392545276,1761639419057,1970.74,0.0003738,50]
[392545277,1761639419130,755.67,0.0003738,50]
[392545278,1761639419295,1970.74,0.0003738,50]
[392545279,1761639419375,755.67,0.0003738,50]
[392545280,1761639419556,1970.74,0.0003738,50]
[392545281,1761639419651,755.67,0.0003738,50]
[392545282,1761639419752,160.43706247,0.0003738,50]
[392545283,1761639419837,1970.74,0.0003738,50]
[392545284,1761639419920,755.67,0.0003738,50]
[392545285,1761639420034,500.0,0.0003738,50]
[392545286,1761639420116,1970.74,0.0003738,50]
[392545287,1761639420213,755.67,0.0003738,50]
[392545288,1761639420308,1970.74,0.0003738,50]
[392545289,1761639420397,500.0,0.0003738,50]
[392545290,1761639420487,755.67,0.0003738,50]
[392545291,1761639420576,1970.74,0.0003738,50]
[392545292,1761639420670,500.0,0.0003738,50]
[392545293,1761639420756,1970.74,0.0003738,50]
[392545294,1761639420830,500.0,0.0003738,50]
[392545295,1761639420989,755.67,0.0003738,50]
[392545296,1761639421067,1970.74,0.0003738,50]
[392545297,1761639421145,500.0,0.0003738,50]
[392545298,1761639421277,500.0,0.0003738,50]
[392545299,1761639421530,500.0,0.0003738,50]
[392545300,1761639421602,1970.74,0.0003738,50]
[392545301,1761639421972,755.67,0.0003738,50]
[392545302,1761639422059,500.0,0.0003738,50]
[392545303,1761639422137,1970.74,0.0003738,50]
[392545304,1761639422217,500.0,0.0003738,50]
[392545305,1761639422290,1970.74,0.0003738,50]
[392545306,1761639422370,755.67,0.0003738,50]
[392545307,1761639422449,257.66614638,0.0003738,50]
[392545308,1761639422529,1970.74,0.0003738,50]
[392545309,1761639422639,755.67,0.0003738,50]
[392545310,1761639422728,1970.83939837,0.0003738,50]
[392545311,1761639422818,755.735917,0.0003738,50]
[392545312,1761639422924,500.0,0.0003738,50]
[392545313,1761639424222,2197.23,0.0003738,50]
[392545314,1761639424473,2197.23,0.0003738,50]
[392545315,1761639424734,2197.23,0.0003738,50]
[392545316,1761639424984,2197.23,0.0003738,50]
[392545317,1761639425237,2197.23,0.0003738,50]
[392545318,1761639425530,2197.23,0.0003738,50]
[392545319,1761639425695,213.2999725,0.0003738,50]
[392545320,1761639425774,2197.23,0.0003738,50]
[392545321,1761639425872,500.0,0.0003738,50]
[392545322,1761639425953,722.72,0.0003738,50]
[392545323,1761639426026,2197.23,0.0003738,50]
[392545324,1761639426122,500.0,0.0003738,50]
[392545325,1761639426225,722.72,0.0003738,50]
[392545326,1761639426298,2197.23,0.0003738,50]
[392545327,1761639426367,559.86769681,0.0003738,50]
[392545328,1761639426515,722.72,0.0003738,50]
[392545329,1761639426589,500.0,0.0003738,50]
[392545330,1761639426663,2197.23,0.0003738,50]
[392545331,1761639426754,722.72,0.0003738,50]
[392545332,1761639426855,2197.23,0.0003738,50]
[392545333,1761639426926,500.0,0.0003738,50]
[392545334,1761639427004,722.72,0.0003738,50]